fUST/lending_fUST_20250413
["ID","MTS","AMOUNT","RATE_DAILY","PERIOD"]
[357887049,1744507846940,-151.0,0.000219,2]
[357887050,1744507846950,-151.0,0.000219,2]
[357887051,1744507846959,-151.0,0.000219,2]
[357887052,1744507846969,-151.0,0.000219,2]
[357887053,1744507846979,-151.0,0.000219,2]
[357887054,1744507846989,-151.0,0.000219,2]
[357887055,1744507846999,-176.296374,0.000219,2]
[357887056,1744507847008,-151.0,0.000219,2]
[357887057,1744507847018,-151.0,0.000219,2]
[357887058,1744507847027,-151.0,0.000219,2]
[357887059,1744507847037,-151.0,0.000219,2]
[357887060,1744507847047,-151.0,0.000219,2]
[357887061,1744507847056,-151.0,0.000219,2]
[357887062,1744507847065,-151.0,0.000219,2]
[357887063,1744507847074,-151.0,0.000219,2]
[357887064,1744507847084,-151.0,0.000219,2]
[357887065,1744507847093,-151.0,0.000219,2]
[357887066,1744507847102,-151.0,0.000219,2]
[357887067,1744507847112,-244.55596,0.000219,2]
[357887068,1744507847122,-151.0,0.000219,2]
[357887069,1744507847131,-151.0,0.000219,2]
[357887070,1744507847146,-151.0,0.000219,2]
[357887071,1744507847156,-151.0,0.000219,2]
[357887072,1744507847165,-202.105924,0.000219,2]
[357887073,1744507847175,-151.0,0.000219,2]
[357887074,1744507847185,-166.811138,0.000219,2]
[357887075,1744507847195,-261.685629,0.000219,2]
[357887076,1744507847205,-261.685629,0.000219,2]
[357887077,1744507847216,-261.685629,0.000219,2]
[357887078,1744507847226,-261.685629,0.000219,2]
[357887079,1744507847235,-151.0,0.000219,2]
[357887080,1744507847245,-151.0,0.000219,2]
[357887081,1744507847254,-151.0,0.000219,2]
[357887082,1744507847264,-151.0,0.000219,2]
[357887083,1744507847273,-158.316208,0.000219,2]
[357887084,1744507847283,-151.0,0.000219,2]
[357887085,1744507847293,-181.128565,0.000219,2]
[357887086,1744507847303,-151.0,0.000219,2]
[357887087,1744507847314,-151.0,0.000219,2]
[357887088,1744507847323,-151.0,0.000219,2]
[357887089,1744507847333,-151.0,0.000219,2]
[357887090,1744507847342,-151.0,0.000219,2]
[357887091,1744507847351,-197.915966,0.000219,2]
[357887092,1744507847361,-151.0,0.000219,2]
[357887093,1744507847371,-12500.0,0.000219,2]
[357887094,1744507847380,-151.0,0.000219,2]
[357887095,1744507847390,-151.0,0.000219,2]
[357887096,1744507847399,-151.0,0.000219,2]
[357887097,1744507847409,-152.878862,0.000219,2]
[357887098,1744507847419,-151.0,0.000219,2]
[357887099,1744507847428,-151.0,0.000219,2]
[357887100,1744507847438,-151.0,0.000219,2]
[357887101,1744507847447,-151.0,0.000219,2]
[357887102,1744507847457,-151.0,0.000219,2]
[357887103,1744507847467,-153.611039,0.000219,2]
[357887104,1744507847476,-151.0,0.000219,2]
[357887105,1744507847486,-151.0,0.000219,2]
[357887106,1744507847495,-151.0,0.000219,2]
[357887107,1744507847504,-151.0,0.000219,2]
[357887108,1744507847514,-151.0,0.000219,2]
[357887109,1744507847523,-151.0,0.000219,2]
[357887110,1744507847533,-151.0,0.000219,2]
[357887111,1744507847542,-151.0,0.000219,2]
[357887112,1744507847551,-151.0,0.000219,2]
[357887113,1744507847560,-151.0,0.000219,2]
[357887114,1744507847581,-151.0,0.000219,2]
[357887115,1744507847594,-600.338282,0.000219,2]
[357887116,1744507847604,-600.338282,0.000219,2]
[357887117,1744507847614,-600.338282,0.000219,2]
[357887118,1744507847624,-328.775792,0.000219,2]
[357887119,1744507847634,-328.775792,0.000219,2]
[357887120,1744507847644,-328.775792,0.000219,2]
[357887121,1744507847654,-600.338282,0.000219,2]
[357887122,1744507847664,-328.775792,0.000219,2]
[357887123,1744507847673,-600.338282,0.000219,2]
[357887124,1744507847684,-600.338282,0.000219,2]
[357887125,1744507847694,-255.560986,0.000219,2]
[357887126,1744507847704,-255.560986,0.000219,2]
[357887127,1744507847714,-151.0,0.000219,2]
[357887128,1744507847724,-255.560986,0.000219,2]
[357887129,1744507847733,-255.560986,0.000219,2]
[357887130,1744507847743,-151.0,0.00021903,2]
[357887131,1744507847753,-207.4,0.00021903,2]
[357887132,1744507847763,-151.0,0.00021904,2]
[357887133,1744507847774,-72971.28429973,0.00021916,2]
[357887134,1744507848171,-151.0,0.000219,2]
[357887135,1744507848203,-44.25105133,0.000219,2]
[357887136,1744507862224,-250.0,0.00021699,2]
[357887137,1744507865270,-206.91090473,0.00021573,2]
[357887138,1744507870688,-293.08909527,0.00021573,2]
[357887141,1744507883095,-250.0,0.00021573,2]
[357887142,1744507890646,-191.23473368,0.00021573,2]
[357887143,1744507896979,-58.76526632,0.00021573,2]
[357887144,1744507897004,-12.0128164,0.00021699,2]
[357887145,1744507897033,-98.18523516,0.00021699,2]
[357887147,1744507920429,-166.952271,0.00020634,2]
[357887148,1744507927488,-83.047729,0.00020634,2]
[357887149,1744507927514,-72.55350645,0.00021573,2]
[357887150,1744507984084,-160.0,0.0002,3]
[357887151,1744507984108,-19.0240392,0.00020634,2]
[357887152,1744507992445,-480.15448551,0.0002159,3]
[357887154,1744507997749,-147.9282318,0.00020634,2]
[357887155,1744507997776,-28.57779863,0.00020762,2]
[357887156,1744508002450,-278.87551449,0.0002159,3]
[357887157,1744508002812,-21.12448551,0.0002159,3]
[357887158,1744508009606,250.55,0.00021273,10]
[357887160,1744508046686,513.52,0.00026,90]
[357887161,1744508100917,275.574,0.00027,120]
[357887163,1744508432173,162.87,0.000269,31]
[357887168,1744508961992,-160.0,0.0002,3]
[357887169,1744508962016,-47.9620035,0.00020089,2]
[357887170,1744508979579,-300.0,0.00020089,2]
[357887171,1744508984609,-200.0,0.00020089,2]
[357887206,1744509032167,-1060.0809826,0.00020089,2]
[357887208,1744509032177,-300.0,0.00020196,2]
[357887210,1744509032187,-300.0,0.00020196,2]
[357887212,1744509032196,-24875.8926082,0.00020197,2]
[357887214,1744509032206,-246.1582854,0.00020233,2]
[357887216,1744509032215,-492.45025,0.0002045,2]
[357887218,1744509032225,-1000.0,0.00020534,2]
[357887220,1744509032234,-250.0,0.00020534,2]
[357887222,1744509032244,-476.50603043,0.00020534,2]
[357887224,1744509032254,-3050.4399947,0.00020588,2]
[357887226,1744509032264,-4718.71394932,0.0002066,2]
[357887228,1744509032273,-466.24416764,0.00021552,2]
[357887230,1744509032283,-509.64229892,0.00021573,2]
[357887233,1744509032294,-505.60661754,0.00021573,2]
[357887235,1744509032304,-487.05896955,0.00021573,2]
[357887237,1744509032314,-500.0,0.00021573,2]
[357887240,1744509032324,-500.91897297,0.00021573,2]
[357887243,1744509032333,-503.08240365,0.00021573,2]
[357887246,1744509032343,-508.35365782,0.00021573,2]
[357887248,1744509032352,-500.0,0.00021573,2]
[357887250,1744509032362,-500.0,0.00021573,2]
[357887252,1744509032371,-500.0,0.00021573,2]
[357887254,1744509032380,-501.91924686,0.00021573,2]
[357887256,1744509032389,-504.66822116,0.00021573,2]
[357887258,1744509032402,-96.58762065,0.00021573,2]
[357887260,1744509032411,-151.0,0.00021587,2]
[357887262,1744509032422,-207.4,0.00021587,2]
[357887264,1744509032431,-737.95,0.0002159,3]
[357887266,1744509032441,-1761.63963349,0.00021595,2]
[357887268,1744509032451,-182.46597177,0.00021599,2]
[357887270,1744509032461,-500.0,0.00021599,2]
[357887272,1744509032471,-171.87970684,0.00021599,2]
[357887274,1744509032480,-572.30672177,0.00021599,2]
[357887276,1744509032490,-500.0,0.00021599,2]
[357887278,1744509032505,-314.40393505,0.00021599,2]
[357887280,1744509032515,-500.0,0.00021599,2]
[357887282,1744509032525,-500.0,0.00021599,2]
[357887284,1744509032535,-432.85499756,0.00021599,2]
[357887286,1744509032545,-382.86948254,0.00021599,2]
[357887288,1744509032555,-594.53045766,0.00021599,2]
[357887290,1744509032566,-500.0,0.00021599,2]
[357887292,1744509032577,-500.0,0.00021599,2]
[357887294,1744509032586,-500.0,0.00021599,2]
[357887296,1744509032596,-500.0,0.00021599,2]
[357887298,1744509032606,-500.0,0.00021599,2]
[357887300,1744509032616,-410.98218602,0.00021599,2]
[357887302,1744509032625,-500.0,0.00021599,2]
[357887304,1744509032635,-207679.24786552,0.000216,2]
[357887332,1744509034670,162.88,0.000269,31]
[357887601,1744509637714,162.88,0.000269,31]
[357887604,1744509898528,-151.0,0.00020495,2]
[357887644,1744510232205,-469.475832,0.00020454,2]
[357887646,1744510232215,-918.1563298,0.00020495,2]
[357887648,1744510232224,-246.225125,0.00020499,2]
[357887650,1744510232234,-500.0,0.00020499,2]
[357887652,1744510232243,-213.1557673,0.00020886,2]
[357887654,1744510232253,-2856.0468982,0.00021259,2]
[357887656,1744510232264,-428.71776784,0.00021399,2]
[357887658,1744510232273,-300.0,0.00021472,2]
[357887660,1744510232282,-500.0,0.00021473,2]
[357887662,1744510232292,-500.0,0.00021473,2]
[357887664,1744510232301,-500.0,0.00021473,2]
[357887666,1744510232310,-500.0,0.00021473,2]
[357887668,1744510232320,-738.09858338,0.00021473,2]
[357887671,1744510232331,-921.0950018,0.00021473,2]
[357887673,1744510232341,-151.0,0.0002149,3]
[357887675,1744510232350,-302.4799882,0.00021492,2]
[357887761,1744510238405,-781.25811638,0.00021259,2]
[357887763,1744510238418,-1297.38063118,0.00021259,2]
[357887765,1744510238430,-63.39642614,0.00021259,2]
[357887767,1744510238440,-428.7177678,0.00021459,2]
[357887769,1744510238450,-170.3597527,0.00021492,2]
[357887771,1744510238461,-250.0,0.00021498,2]
[357887774,1744510238470,-478.32605337,0.00021498,2]
[357887776,1744510238482,-521.67394663,0.00021498,2]
[357887778,1744510238492,-158.11,0.00021499,2]
[357887780,1744510238502,-305.35242574,0.00021499,2]
[357887790,1744510238585,-194.64757426,0.00021499,2]
[357887792,1744510238596,-500.0,0.00021499,2]
[357887794,1744510238606,-395.29418344,0.00021499,2]
[357887796,1744510238615,-500.0,0.00021499,2]
[357887798,1744510238625,-250.49459859,0.00021499,2]
[357888196,1744510243731,-249.50540141,0.00021499,2]
[357888198,1744510243741,-183.52772985,0.00021499,2]
[357888201,1744510243753,-311.3210541,0.00021499,2]
[357888277,1744510246279,-5.15121605,0.00021499,2]
[357888279,1744510246290,-500.0,0.00021499,2]
[357888280,1744510246300,-500.0,0.00021499,2]
[357888282,1744510246310,-500.0,0.00021499,2]
[357888284,1744510246321,-485.70087776,0.00021499,2]
[357888286,1744510246330,-500.0,0.00021499,2]
[357888288,1744510246340,-500.0,0.00021499,2]
[357888290,1744510246350,-500.0,0.00021499,2]
[357888291,1744510246360,-500.0,0.00021499,2]
[357888293,1744510246370,-500.0,0.00021499,2]
[357888295,1744510246380,-500.0,0.00021499,2]
[357888296,1744510246391,-500.0,0.00021499,2]
[357888297,1744510246400,-624.47846035,0.00021499,2]
[357888298,1744510246410,-500.0,0.00021499,2]
[357888299,1744510246421,-500.0,0.00021499,2]
[357888301,1744510246431,-500.0,0.00021499,2]
[357888302,1744510246441,-500.0,0.00021499,2]
[357888303,1744510246451,-500.0,0.00021499,2]
[357888304,1744510246461,-500.0,0.00021499,2]
[357888305,1744510246472,-262.44358193,0.00021499,2]
[357888306,1744510246482,-500.0,0.00021499,2]
[357888307,1744510246492,-500.0,0.00021499,2]
[357888308,1744510246502,-549.99573591,0.00021499,2]
[357888309,1744510246512,-500.0,0.00021499,2]
[357888310,1744510246522,-500.0,0.00021499,2]
[357888311,1744510246533,-500.0,0.00021499,2]
[357888312,1744510246543,-500.0,0.00021499,2]
[357888313,1744510246553,-500.0,0.00021499,2]
[357888314,1744510246563,-254.99530949,0.00021499,2]
[357888315,1744510246573,-500.0,0.00021499,2]
[357888316,1744510246583,-500.0,0.00021499,2]
[357888317,1744510246593,-500.0,0.00021499,2]
[357888318,1744510246603,-500.0,0.00021499,2]
[357888319,1744510246613,-500.0,0.00021499,2]
[357888320,1744510246623,-500.0,0.00021499,2]
[357888321,1744510246633,-500.0,0.00021499,2]
[357888322,1744510246643,-297.94147606,0.00021499,2]
[357888323,1744510246653,-500.0,0.00021499,2]
[357888324,1744510246663,-500.0,0.00021499,2]
[357888325,1744510246673,-500.0,0.00021499,2]
[357888326,1744510246684,-500.0,0.00021499,2]
[357888327,1744510246694,-500.0,0.00021499,2]
[357888328,1744510246705,-500.0,0.00021499,2]
[357888329,1744510246715,-544.99189822,0.00021499,2]
[357888330,1744510246725,-500.0,0.00021499,2]
[357888331,1744510246735,-1777.31382966,0.000215,2]
[357888349,1744510487186,-246.2251262,0.00020495,2]
[357888350,1744510542626,508.066196,0.00027,30]
[357888351,1744510628461,-245.9325562,0.00021059,2]
[357888352,1744510634633,-167.72859202,0.00021059,2]
[357888353,1744510651842,-158.56468884,0.00021059,2]
[357888354,1744510669578,-41.33231157,0.00021059,2]
[357888355,1744510669602,-158.66768843,0.00021159,2]
[357888356,1744510675559,-184.24109139,0.00021159,2]
[357888357,1744510684703,-151.0,0.00021159,2]
[357888358,1744510714733,-174.15890861,0.00021159,2]
[357888359,1744510739761,-213.32309343,0.00021159,2]
[357888360,1744510743594,-118.60921814,0.00021159,2]
[357888361,1744510743619,-81.38642196,0.00021222,2]
[357888362,1744510760208,-237.9951355,0.00021222,2]
[357888363,1744510773774,-199.2510479,0.00020959,2]
[357888364,1744510803178,-246.10344234,0.00020959,2]
[357888365,1744510832734,-252.461976,0.00020265,2]
[357888366,1744510865617,-176.5,0.00020265,2]
[357888367,1744510926652,-63.1957064,0.00020265,2]
[357888368,1744510926677,-204.97911837,0.00020959,2]
[357888370,1744510959274,-247.45520256,0.00020959,2]
[357888371,1744510981187,-192.11,0.00020959,2]
[357888372,1744510984106,-76.06482477,0.00020959,2]
[357888373,1744510984147,-74.93517523,0.00020959,2]
[357888376,1744511042752,-27.2760136,0.00020959,2]
[357888377,1744511042777,-169.60459693,0.00021122,2]
[357888379,1744511057924,-172.5,0.00020988,2]
[357888381,1744511103551,-250.0,0.00020987,2]
[357888382,1744511126172,-50.0,0.00020987,2]
[357888383,1744511126199,-200.0,0.00020988,2]
[357888411,1744511174965,-157.0039481,0.00020988,3]
[357888442,1744511432487,-154.22796849,0.00020922,2]
[357888444,1744511432498,-499.999999,0.0002098,2]
[357888446,1744511432508,-300.0,0.00020986,2]
[357888448,1744511432518,-500.0,0.00020987,2]
[357888450,1744511432528,-500.0,0.00020987,2]
[357888452,1744511432538,-500.0,0.00020987,2]
[357888455,1744511432549,-500.0,0.00020987,2]
[357888488,1744511432851,-500.0,0.00020987,2]
[357888491,1744511432863,-500.0,0.00020987,2]
[357888493,1744511432874,-500.0,0.00020987,2]
[357888495,1744511432884,-500.0,0.00020987,2]
[357888497,1744511432898,-407.57619855,0.00020987,2]
[357888499,1744511432915,-500.0,0.00020987,2]
[357888501,1744511432932,-500.0,0.00020987,2]
[357888503,1744511432946,-500.0,0.00020987,2]
[357888505,1744511432958,-500.0,0.00020987,2]
[357888507,1744511432967,-500.0,0.00020987,2]
[357888508,1744511432977,-500.0,0.00020987,2]
[357888509,1744511432987,-500.0,0.00020987,2]
[357888510,1744511432996,-500.0,0.00020987,2]
[357888511,1744511433006,-500.0,0.00020987,2]
[357888512,1744511433016,-500.0,0.00020987,2]
[357888513,1744511433025,-500.0,0.00020987,2]
[357888514,1744511433035,-500.0,0.00020987,2]
[357888515,1744511433044,-500.0,0.00020987,2]
[357888516,1744511433054,-500.0,0.00020987,2]
[357888517,1744511433063,-500.0,0.00020987,2]
[357888518,1744511433073,-877.2136,0.00020987,2]
[357888519,1744511433083,-19869.76012716,0.00020988,2]
[357888520,1744511433093,-12938.81640061,0.00020988,3]
[357888521,1744511433103,-838.34317751,0.00020988,3]
[357888522,1744511433113,-160.0,0.00020988,3]
[357888523,1744511433123,-8846.41224875,0.00020988,3]
[357888524,1744511433136,-3698.32524908,0.00020988,3]
[357888525,1744511433146,-42974.27063024,0.00020988,2]
[357888727,1744511438585,-310.338294,0.00020888,2]
[357888798,1744511439232,-157.9,0.00020888,2]
[357888953,1744511440945,-153.32973861,0.00020888,2]
[357888955,1744511440954,-348.24037374,0.0002093,2]
[357888957,1744511440965,-194.34,0.00020978,3]
[357888959,1744511440974,-2479.69686414,0.00020988,2]
[357888963,1744511441000,-3431.59890769,0.00020988,2]
[357889116,1744511446941,-343.64260765,0.0002139,3]
[357889121,1744511464909,-294.09806958,0.00020987,2]
[357889129,1744511558091,-187.732862,0.00020232,2]
[357889138,1744512542845,-190.47143697,0.00020192,2]
[357889139,1744512542869,-250.0,0.00020887,2]
[357889140,1744512542894,-39.68304854,0.00020988,2]
[357889141,1744512547470,-278.87551449,0.00020988,2]
[357889142,1744512555639,-151.93211577,0.00020092,2]
[357889143,1744512592063,-151.93211581,0.00020092,2]
[357889173,1744512632595,-696.13576842,0.00020092,2]
[357889174,1744512632605,-507.9620035,0.00020092,2]
[357889175,1744512632615,-3417.24423549,0.00020988,2]
[357889176,1744512632625,-1000.0,0.000212,2]
[357889177,1744512632635,-1000.0,0.00021221,2]
[357889178,1744512632646,-1000.0,0.00021258,2]
[357889179,1744512632656,-952.56393602,0.00021258,2]
[357889180,1744512632668,-371.87293386,0.00021258,2]
[357889181,1744512632681,-282.08951032,0.00021258,2]
[357889182,1744512632691,-300.0,0.00021272,2]
[357889183,1744512632700,-500.0,0.00021273,2]
[357889184,1744512632710,-230.85364368,0.00021273,2]
[357889234,1744512638755,-269.14635632,0.00021273,2]
[357889236,1744512638766,-500.0,0.00021273,2]
[357889238,1744512638776,-157.0,0.00021273,2]
[357889240,1744512638786,-4381.56121697,0.00021273,2]
[357889242,1744512638797,-500.0,0.00021273,2]
[357889245,1744512638810,-2490.2660311,0.00021273,2]
[357889247,1744512638819,-1994.96676907,0.00021276,2]
[357889249,1744512638829,-157.46901784,0.00021276,2]
[357889251,1744512638839,-151.0,0.00021287,2]
[357889253,1744512638848,-61.78605473,0.00021287,2]
[357889387,1744512640882,-145.61394527,0.00021287,2]
[357889389,1744512640892,-374.30255433,0.0002129,3]
[357889391,1744512640903,-253.78744567,0.0002129,3]
[357889393,1744512640913,-107.21255933,0.0002129,3]
[357889764,1744512646679,-624.13025132,0.0002129,3]
[357889765,1744512646736,-27.68718935,0.0002129,3]
[357889766,1744512646746,-224.55043692,0.00021299,2]
[357889767,1744512646758,-275.44956308,0.00021299,2]
[357889768,1744512646768,-295.61632669,0.00021299,2]
[357889769,1744512646778,-500.0,0.00021299,2]
[357889770,1744512646787,-189.1809958,0.00021299,2]
[357889771,1744512646798,-500.0,0.00021299,2]
[357889772,1744512646808,-500.0,0.00021299,2]
[357889773,1744512646818,-500.0,0.00021299,2]
[357889775,1744512646827,-500.0,0.00021299,2]
[357889776,1744512646837,-500.0,0.00021299,2]
[357889777,1744512646847,-16343.34013383,0.000213,2]
[357889778,1744512646856,-6469.4082003,0.000213,3]
[357889779,1744512646866,-101829.7126991,0.000213,2]
[357889780,1744512699221,-183.87793091,0.00019992,2]
[357889782,1744512707288,-184.03269337,0.00019992,2]
[357889783,1744512708297,-234.15551216,0.00019992,2]
[357889784,1744512739992,3486.95322221,0.00023,15]
[357889807,1744512872687,-187.7328636,0.00019992,2]
[357889808,1744512874286,-210.20099996,0.00019992,2]
[357889809,1744512882674,157.19585112,0.00025,30]
[357889810,1744512969887,-602.06613644,0.00019892,2]
[357890149,1744513612839,188.0,0.00027,30]
[357890334,1744513838350,-169.19931065,0.00019892,2]
[357890335,1744513838360,-68.79883696,0.00019892,2]
[357890336,1744513838370,-169.81319344,0.0002,2]
[357890337,1744513838380,-184.03269337,0.00020092,2]
[357890338,1744513838390,-110.44372465,0.00020292,2]
[357890339,1744513838402,-77.28913895,0.00020292,2]
[357890340,1744513838411,-1462.63397879,0.0002076,2]
[357890389,1744513840181,-1537.36602121,0.0002076,2]
[357890391,1744513840191,-1008.1902709,0.000211,2]
[357890393,1744513840202,-500.0,0.00021173,2]
[357890395,1744513840212,-151.0,0.00021187,2]
[357890397,1744513840221,-207.4,0.00021187,2]
[357890399,1744513840230,-158.27,0.0002119,3]
[357890401,1744513840241,-474.83,0.0002119,3]
[357890403,1744513840250,-300.0,0.00021198,2]
[357890405,1744513840260,-500.0,0.00021199,2]
[357890407,1744513840269,-349.62046996,0.00021199,2]
[357890409,1744513840278,-500.0,0.00021199,2]
[357890411,1744513840287,-233.89925099,0.00021199,2]
[357890413,1744513840297,-500.0,0.00021199,2]
[357890415,1744513840307,-500.0,0.00021199,2]
[357890417,1744513840316,-500.0,0.00021199,2]
[357890419,1744513840326,-500.0,0.00021199,2]
[357890421,1744513840337,-500.0,0.00021199,2]
[357890423,1744513840347,-412.46840179,0.00021199,2]
[357890425,1744513840356,-500.0,0.00021199,2]
[357890427,1744513840366,-500.0,0.00021199,2]
[357890429,1744513840376,-500.0,0.00021199,2]
[357890431,1744513840386,-173.59281387,0.00021199,2]
[357890433,1744513840398,-326.40718613,0.00021199,2]
[357890435,1744513840408,-500.0,0.00021199,2]
[357890437,1744513840417,-1.00281387,0.00021199,2]
[357890438,1744513840429,-498.99718613,0.00021199,2]
[357890439,1744513840439,-385.8808092,0.00021199,2]
[357890440,1744513840448,-500.0,0.00021199,2]
[357890441,1744513840458,-471.96392923,0.00021199,2]
[357890442,1744513840541,-28.03607077,0.00021199,2]
[357890443,1744513840550,-500.0,0.00021199,2]
[357890444,1744513840559,-500.0,0.00021199,2]
[357890445,1744513840569,-500.0,0.00021199,2]
[357890446,1744513840578,-500.0,0.00021199,2]
[357890447,1744513840587,-500.0,0.00021199,2]
[357890448,1744513840597,-500.0,0.00021199,2]
[357890449,1744513840606,-500.0,0.00021199,2]
[357890450,1744513840615,-500.0,0.00021199,2]
[357890451,1744513840624,-500.0,0.00021199,2]
[357890452,1744513840634,-500.0,0.00021199,2]
[357890453,1744513840643,-8269.98923228,0.000212,2]
[357890454,1744513840652,-547.47469695,0.000212,3]
[357890455,1744513840664,-272.79324484,0.000212,3]
[357890456,1744513840675,-420.87043536,0.000212,3]
[357890638,1744513842842,-773.83,0.000212,3]
[357890640,1744513845813,-2227.59279292,0.000212,3]
[357890641,1744513845823,-5147.6251052,0.000212,2]
[357890642,1744513845918,-3746.78737795,0.000212,2]
[357890666,1744514030522,-272.31622249,0.00020214,2]
[357890668,1744514175489,-206.1561889,0.00020214,2]
[357890669,1744514233406,153.862203,0.0002646,30]
[357890670,1744514353268,153.862203,0.0002646,30]
[357890671,1744514383346,1000.0,0.00027,30]
[357890672,1744514414576,-250.0,0.00020214,2]
[357890699,1744514914573,999.94,0.00027,30]
[357890707,1744515014904,-157.0039481,0.00020214,2]
[357890745,1744515031927,-352.839863,0.00020214,2]
[357890747,1744515031939,-1135.74369071,0.00020214,2]
[357890749,1744515031948,-229.10518311,0.00020366,2]
[357891243,1744515056764,-313.81883925,0.00020093,2]
[357891246,1744515316710,-250.0,0.00019993,2]
[357891247,1744515318655,-142.33734965,0.00020093,2]
[357891248,1744515318677,-107.66265035,0.00020366,2]
[357891249,1744515324807,-128.62415358,0.00020366,2]
[357891250,1744515324830,-164.46494169,0.00020662,2]
[357891251,1744515330451,-206.91090473,0.00020662,2]
[357891252,1744515460072,-191.23473368,0.00020562,2]
[357891253,1744515553058,153.862203,0.0002646,30]
[357891256,1744515896054,-250.0,0.00019961,2]
[357891268,1744516152986,153.862203,0.0002646,30]
[357891270,1744516208441,-300.0,0.00019955,2]
[357891282,1744516232143,-24600.0,0.00019955,2]
[357891283,1744516232153,-2052.0093356,0.00019961,2]
[357891284,1744516232163,-808.76526632,0.00020562,2]
[357891285,1744516232173,-194.01302686,0.00020662,2]
[357891286,1744516232183,-1143.92914322,0.00020899,2]
[357891287,1744516232193,-300.0,0.00020899,2]
[357891288,1744516232203,-9240.68432874,0.000209,2]
[357891289,1744516232213,-2199.78255909,0.000209,3]
[357891290,1744516232223,-769.363014,0.000209,2]
[357891291,1744516232233,-3000.0,0.00020949,2]
[357891292,1744516232243,-1204.8947852,0.00020952,2]
[357891293,1744516232253,-500.1886179,0.00020973,2]
[357891294,1744516232263,-170.48213439,0.00020973,2]
[357891295,1744516232273,-504.462055,0.00020973,2]
[357891296,1744516232284,-507.69644111,0.00020973,2]
[357891297,1744516232294,-500.0,0.00020973,2]
[357891298,1744516232304,-503.09565829,0.00020973,2]
[357891299,1744516232316,-500.0,0.00020973,2]
[357891300,1744516232327,-500.0,0.00020973,2]
[357891301,1744516232336,-152.48658959,0.00020973,2]
[357891302,1744516232347,-503.6079491,0.00020973,2]
[357891303,1744516232357,-501.91175728,0.00020973,2]
[357891304,1744516232367,-502.50184295,0.00020973,2]
[357891305,1744516232378,-500.0,0.00020973,2]
[357891306,1744516232387,-134.369909,0.00020973,2]
[357891307,1744516232400,-365.630091,0.00020973,2]
[357891308,1744516232410,-500.80539679,0.00020973,2]
[357891309,1744516232420,-456.16971189,0.00020973,2]
[357891310,1744516232430,-500.0,0.00020973,2]
[357891311,1744516232439,-366.73205454,0.00020973,2]
[357891312,1744516232450,-500.55514351,0.00020973,2]
[357891313,1744516232459,-500.0,0.00020973,2]
[357891314,1744516232469,-221.02366367,0.00020973,2]
[357891315,1744516232479,-515.74237369,0.00020973,2]
[357891316,1744516232489,-506.95544763,0.00020973,2]
[357891317,1744516232499,-503.70719436,0.00020973,2]
[357891318,1744516232509,-151.0,0.00020987,2]
[357891319,1744516232520,-207.4,0.00020987,2]
[357891320,1744516232529,-630.36,0.0002099,3]
[357891321,1744516232539,-152.382735,0.00020998,2]
[357891322,1744516232550,-151.0,0.00020998,2]
[357891323,1744516232560,-181.448173,0.00020998,2]
[357891324,1744516232570,-177.5952006,0.00020998,2]
[357891325,1744516232580,-151.0,0.00020999,2]
[357891326,1744516232590,-151.0,0.00020999,2]
[357891327,1744516232600,-151.0,0.00020999,2]